[Event "Betsys MČR v online bleskovém šachu 2021"]
[Site "Chess.com"]
[Date "2021.04.17"]
[Round "11"]
[White "Loveforever_Pepi"]
[Black "LiborRojar"]
[Result "1-0"]
[WhiteElo "2272"]
[BlackElo "2070"]
[TimeControl "180+1"]
[EndTime "10:49:36 PDT"]
[Termination "Uživatel Loveforever_Pepi zvítězil po vzdání soupeře"]

1. e4 {[%clk 0:03:00.9]} 1... e5 {[%clk 0:02:56.5]} 2. Nf3 {[%clk 0:03:00.2]}
2... Nf6 {[%clk 0:02:56.6]} 3. Nxe5 {[%clk 0:03:00.2]} 3... Nxe4 {[%clk
0:02:56.6]} 4. Qe2 {[%clk 0:02:59.6]} 4... Qe7 {[%clk 0:02:56.8]} 5. Qxe4 {[%clk
0:02:59.1]} 5... d6 {[%clk 0:02:57.1]} 6. d4 {[%clk 0:02:56.7]} 6... dxe5 {[%clk
0:02:57.3]} 7. Qxe5 {[%clk 0:02:53.6]} 7... Qxe5+ {[%clk 0:02:56.8]} 8. dxe5
{[%clk 0:02:53.7]} 8... Bf5 {[%clk 0:02:56.7]} 9. c3 {[%clk 0:02:41.7]} 9... Nd7
{[%clk 0:02:56.4]} 10. Bf4 {[%clk 0:02:34.1]} 10... O-O-O {[%clk 0:02:54.9]} 11.
Nd2 {[%clk 0:02:33.7]} 11... Nxe5 {[%clk 0:02:54.5]} 12. Bxe5 {[%clk 0:02:29.1]}
12... Re8 {[%clk 0:02:54.6]} 13. Nf3 {[%clk 0:02:18.2]} 13... f6 {[%clk
0:02:54.5]} 14. O-O-O {[%clk 0:01:45.5]} 14... fxe5 {[%clk 0:02:53.9]} 15. Re1
{[%clk 0:01:22.2]} 15... Bc5 {[%clk 0:02:46.1]} 16. Rxe5 {[%clk 0:01:17.2]}
16... Rxe5 {[%clk 0:02:42.2]} 17. Nxe5 {[%clk 0:01:18.1]} 17... Bxf2 {[%clk
0:02:40.2]} 18. Bd3 {[%clk 0:01:15.8]} 18... Be3+ {[%clk 0:02:32.3]} 19. Kc2
{[%clk 0:01:15.7]} 19... Be6 {[%clk 0:02:28.2]} 20. Rf1 {[%clk 0:01:11.1]} 20...
c6 {[%clk 0:02:06.5]} 21. Bf5 {[%clk 0:00:53.4]} 21... Bxf5+ {[%clk 0:01:54.7]}
22. Rxf5 {[%clk 0:00:54.3]} 22... Re8 {[%clk 0:01:48.2]} 23. Nc4 {[%clk
0:00:42]} 23... Bh6 {[%clk 0:01:39]} 24. Nd6+ {[%clk 0:00:41.6]} 24... Kd7
{[%clk 0:01:38.7]} 25. Nxe8 {[%clk 0:00:40.7]} 25... Kxe8 {[%clk 0:01:38.9]} 26.
b3 {[%clk 0:00:39.4]} 26... Ke7 {[%clk 0:01:38.9]} 27. Kd3 {[%clk 0:00:38.9]}
27... Bc1 {[%clk 0:01:38]} 28. c4 {[%clk 0:00:38.1]} 28... g6 {[%clk 0:01:37.9]}
29. Rf1 {[%clk 0:00:37.1]} 29... Bb2 {[%clk 0:01:37.2]} 30. Ke4 {[%clk
0:00:36.5]} 30... Ke6 {[%clk 0:01:36.6]} 31. Rf8 {[%clk 0:00:34.6]} 31... b5
{[%clk 0:01:26.7]} 32. cxb5 {[%clk 0:00:31.4]} 32... cxb5 {[%clk 0:01:26.2]} 33.
Rb8 {[%clk 0:00:30.8]} 33... Be5 {[%clk 0:01:22.1]} 34. Rxb5 {[%clk 0:00:28.8]}
34... Bxh2 {[%clk 0:01:21.9]} 35. Rb7 {[%clk 0:00:27.8]} 35... Bg1 {[%clk
0:01:17.7]} 36. Rxh7 {[%clk 0:00:27]} 36... Bc5 {[%clk 0:01:13.1]} 37. Rc7
{[%clk 0:00:23.9]} 37... Bb6 {[%clk 0:01:11.4]} 38. Rb7 {[%clk 0:00:22.8]} 38...
Bc5 {[%clk 0:01:07.8]} 39. b4 {[%clk 0:00:22.8]} 39... Bf2 {[%clk 0:01:06.3]}
40. a4 {[%clk 0:00:22.1]} 40... Bg1 {[%clk 0:01:02.7]} 41. a5 {[%clk 0:00:19.4]}
41... Bf2 {[%clk 0:01:01.7]} 42. b5 {[%clk 0:00:18.8]} 42... Kd6 {[%clk
0:01:01.2]} 43. Rg7 {[%clk 0:00:17.6]} 43... Kc5 {[%clk 0:00:58.5]} 44. b6
{[%clk 0:00:17.2]} 44... axb6 {[%clk 0:00:58]} 45. a6 {[%clk 0:00:17.4]} 45...
Kc6 {[%clk 0:00:53.1]} 46. a7 {[%clk 0:00:15.3]} 46... b5 {[%clk 0:00:54]} 47.
a8=Q+ {[%clk 0:00:14.8]} 1-0

[Event "Betsys MČR v online bleskovém šachu 2021"]
[Site "Chess.com"]
[Date "2021.04.17"]
[Round "11"]
[White "Jeff_CZE"]
[Black "Klapuch05"]
[Result "0-1"]
[WhiteElo "1802"]
[BlackElo "1578"]
[TimeControl "180+1"]
[EndTime "10:49:36 PDT"]
[Termination "Uživatel Klapuch05 zvítězil matem"]

1. d4 {[%clk 0:03:00.9]} 1... Nf6 {[%clk 0:02:59.7]} 2. c4 {[%clk 0:03:01.1]}
2... g6 {[%clk 0:02:59.9]} 3. Nc3 {[%clk 0:02:59.1]} 3... d5 {[%clk 0:03:00.5]}
4. cxd5 {[%clk 0:02:58.8]} 4... Nxd5 {[%clk 0:02:59.7]} 5. e4 {[%clk 0:02:59.3]}
5... Nxc3 {[%clk 0:03:00]} 6. bxc3 {[%clk 0:03:00.2]} 6... Bg7 {[%clk
0:03:00.5]} 7. Nf3 {[%clk 0:02:57.7]} 7... O-O {[%clk 0:03:00.3]} 8. Be2 {[%clk
0:02:57.8]} 8... c5 {[%clk 0:02:43.8]} 9. Be3 {[%clk 0:02:56.6]} 9... b6 {[%clk
0:02:42.1]} 10. O-O {[%clk 0:02:54.3]} 10... Bb7 {[%clk 0:02:40.4]} 11. d5
{[%clk 0:02:51.1]} 11... Bxc3 {[%clk 0:02:38.2]} 12. Rb1 {[%clk 0:02:48.5]}
12... Bg7 {[%clk 0:02:36.1]} 13. Bxc5 {[%clk 0:02:43.9]} 13... Bxd5 {[%clk
0:02:33.7]} 14. Bxe7 {[%clk 0:02:22.1]} 14... Qxe7 {[%clk 0:02:34.6]} 15. Qxd5
{[%clk 0:02:21.8]} 15... Nd7 {[%clk 0:02:21.1]} 16. Rfc1 {[%clk 0:02:04.9]}
16... Nc5 {[%clk 0:02:18.6]} 17. e5 {[%clk 0:01:53.9]} 17... Rfe8 {[%clk
0:02:14.1]} 18. Bc4 {[%clk 0:01:51.4]} 18... Rad8 {[%clk 0:02:11.6]} 19. Qc6
{[%clk 0:01:23.6]} 19... Bxe5 {[%clk 0:01:59.1]} 20. Re1 {[%clk 0:01:19.8]}
20... Rd6 {[%clk 0:01:53.3]} 21. Qxd6 {[%clk 0:00:24.4]} 21... Qxd6 {[%clk
0:01:49]} 22. Rbd1 {[%clk 0:00:18.4]} 22... Qc7 {[%clk 0:01:45.7]} 23. Ng5
{[%clk 0:00:11.9]} 23... Bxh2+ {[%clk 0:01:42.1]} 24. Kf1 {[%clk 0:00:10.7]}
24... Rxe1+ {[%clk 0:01:42.6]} 25. Rxe1 {[%clk 0:00:11.4]} 25... Ne6 {[%clk
0:01:23.4]} 26. Nxe6 {[%clk 0:00:07]} 26... Qxc4+ {[%clk 0:01:20.8]} 27. Re2
{[%clk 0:00:04.3]} 27... fxe6 {[%clk 0:01:20.9]} 28. g3 {[%clk 0:00:03.8]} 28...
Qc1+ {[%clk 0:01:17.6]} 29. Kg2 {[%clk 0:00:03.4]} 29... Bxg3 {[%clk 0:01:15.7]}
30. fxg3 {[%clk 0:00:02.9]} 30... Qc6+ {[%clk 0:01:15.3]} 31. Kf2 {[%clk
0:00:02.7]} 31... Qc5+ {[%clk 0:01:15.2]} 32. Kg2 {[%clk 0:00:03]} 32... Qd5+
{[%clk 0:01:14.8]} 33. Kf2 {[%clk 0:00:03.4]} 33... Qd4+ {[%clk 0:01:15.2]} 34.
Kg2 {[%clk 0:00:03.8]} 34... Kf7 {[%clk 0:01:14.8]} 35. Rf2+ {[%clk 0:00:03.6]}
35... Ke7 {[%clk 0:01:14.7]} 36. Rf3 {[%clk 0:00:03.4]} 36... Qd5 {[%clk
0:01:13.8]} 37. Kf2 {[%clk 0:00:02.8]} 37... Kd6 {[%clk 0:01:10.8]} 38. Re3
{[%clk 0:00:02.7]} 38... Kc5 {[%clk 0:01:09.4]} 39. Ke2 {[%clk 0:00:03]} 39...
Kc4 {[%clk 0:01:09.1]} 40. Kf2 {[%clk 0:00:02.1]} 40... Qd2+ {[%clk 0:01:08.7]}
41. Kf3 {[%clk 0:00:02.4]} 41... Qxe3+ {[%clk 0:01:08.1]} 42. Kxe3 {[%clk
0:00:03.3]} 42... Kc3 {[%clk 0:01:08.9]} 43. Ke4 {[%clk 0:00:03.8]} 43... Kb2
{[%clk 0:01:09.6]} 44. Ke5 {[%clk 0:00:04.2]} 44... Kxa2 {[%clk 0:01:10]} 45.
Kxe6 {[%clk 0:00:05.1]} 45... b5 {[%clk 0:01:10.6]} 46. Kf6 {[%clk 0:00:06]}
46... b4 {[%clk 0:01:11.4]} 47. Kg7 {[%clk 0:00:06.9]} 47... b3 {[%clk
0:01:12.3]} 48. Kxh7 {[%clk 0:00:07.7]} 48... b2 {[%clk 0:01:13.2]} 49. Kxg6
{[%clk 0:00:08.4]} 49... b1=Q+ {[%clk 0:01:14.1]} 50. Kh6 {[%clk 0:00:08]} 50...
Qg1 {[%clk 0:01:14.8]} 51. g4 {[%clk 0:00:07.4]} 51... Qxg4 {[%clk 0:01:15.7]}
52. Kh7 {[%clk 0:00:08]} 52... Kb3 {[%clk 0:01:15.4]} 53. Kh6 {[%clk 0:00:08.6]}
53... Kc4 {[%clk 0:01:16.3]} 54. Kh7 {[%clk 0:00:09.2]} 54... Kd5 {[%clk
0:01:17.2]} 55. Kh6 {[%clk 0:00:09.9]} 55... Ke6 {[%clk 0:01:18.1]} 56. Kh7
{[%clk 0:00:10.5]} 56... Kf7 {[%clk 0:01:17.6]} 57. Kh6 {[%clk 0:00:10.8]} 57...
Qg6# {[%clk 0:01:15.8]} 0-1

[Event "Betsys MČR v online bleskovém šachu 2021"]
[Site "Chess.com"]
[Date "2021.04.17"]
[Round "11"]
[White "BRNOTEACHER"]
[Black "Joanna23W"]
[Result "1-0"]
[WhiteElo "2381"]
[BlackElo "2656"]
[TimeControl "180+1"]
[EndTime "10:49:37 PDT"]
[Termination "Uživatel BRNOTEACHER zvítězil na čas"]

1. d4 {[%clk 0:03:00.9]} 1... Nf6 {[%clk 0:02:59.4]} 2. c4 {[%clk 0:03:00.9]}
2... g6 {[%clk 0:02:59.3]} 3. Nc3 {[%clk 0:03:00.9]} 3... Bg7 {[%clk 0:02:59.6]}
4. e4 {[%clk 0:03:00.5]} 4... d6 {[%clk 0:02:59.9]} 5. Nf3 {[%clk 0:03:00.5]}
5... O-O {[%clk 0:02:58.6]} 6. Be2 {[%clk 0:03:00.7]} 6... e5 {[%clk 0:02:52.1]}
7. O-O {[%clk 0:03:00.2]} 7... exd4 {[%clk 0:02:47.5]} 8. Nxd4 {[%clk
0:02:59.6]} 8... Nc6 {[%clk 0:02:47.8]} 9. Be3 {[%clk 0:02:57]} 9... Re8 {[%clk
0:02:37.6]} 10. f3 {[%clk 0:02:55.4]} 10... Be6 {[%clk 0:02:35]} 11. Qd2 {[%clk
0:02:53.6]} 11... Qd7 {[%clk 0:02:33]} 12. Rad1 {[%clk 0:02:51.2]} 12... a6
{[%clk 0:02:15]} 13. b3 {[%clk 0:02:50.2]} 13... Nxd4 {[%clk 0:02:02.9]} 14.
Bxd4 {[%clk 0:02:49.7]} 14... Nh5 {[%clk 0:01:56.3]} 15. Bxg7 {[%clk 0:02:40.8]}
15... Nxg7 {[%clk 0:01:55.7]} 16. c5 {[%clk 0:02:39]} 16... Rad8 {[%clk
0:01:52]} 17. cxd6 {[%clk 0:02:39]} 17... Qc6 {[%clk 0:01:46.1]} 18. e5 {[%clk
0:02:15.2]} 18... cxd6 {[%clk 0:01:45.7]} 19. exd6 {[%clk 0:02:14]} 19... Nf5
{[%clk 0:01:45.8]} 20. Ne4 {[%clk 0:02:13.4]} 20... Qb6+ {[%clk 0:01:45]} 21.
Kh1 {[%clk 0:02:12.1]} 21... Ne3 {[%clk 0:01:09.2]} 22. Nf6+ {[%clk 0:02:02.5]}
22... Kf8 {[%clk 0:01:06.6]} 23. Rfe1 {[%clk 0:01:50]} 23... Kg7 {[%clk
0:00:14.6]} 24. Nxe8+ {[%clk 0:01:44.4]} 24... Rxe8 {[%clk 0:00:14.9]} 25. Qc3+
{[%clk 0:01:04.1]} 25... Kg8 {[%clk 0:00:14.9]} 26. Rd2 {[%clk 0:01:03.6]} 26...
Rd8 {[%clk 0:00:14.3]} 27. Qe5 {[%clk 0:00:58.3]} 27... Nf5 {[%clk 0:00:11.9]}
28. Red1 {[%clk 0:00:50.7]} 28... Qc6 {[%clk 0:00:08.3]} 29. Bc4 {[%clk
0:00:46.4]} 29... Bxc4 {[%clk 0:00:07]} 30. bxc4 {[%clk 0:00:45.7]} 30... Qxc4
{[%clk 0:00:06.2]} 31. d7 {[%clk 0:00:37.3]} 31... Ng7 {[%clk 0:00:04]} 32. Qe7
{[%clk 0:00:32.5]} 32... Qc7 {[%clk 0:00:03.5]} 33. Rc2 {[%clk 0:00:28.1]} 1-0

[Event "Betsys MČR v online bleskovém šachu 2021"]
[Site "Chess.com"]
[Date "2021.04.17"]
[Round "11"]
[White "jarosymon"]
[Black "Michal5"]
[Result "1-0"]
[WhiteElo "1703"]
[BlackElo "1202"]
[TimeControl "180+1"]
[EndTime "10:49:37 PDT"]
[Termination "Uživatel jarosymon zvítězil matem"]

1. e4 {[%clk 0:03:00.9]} 1... c5 {[%clk 0:02:50.7]} 2. b4 {[%clk 0:02:59.5]}
2... cxb4 {[%clk 0:02:48.1]} 3. d4 {[%clk 0:02:58.9]} 3... Nf6 {[%clk
0:02:45.1]} 4. Bd3 {[%clk 0:02:55.3]} 4... Nc6 {[%clk 0:02:40.1]} 5. Nf3 {[%clk
0:02:50.5]} 5... g6 {[%clk 0:02:37.3]} 6. a3 {[%clk 0:02:47.1]} 6... bxa3 {[%clk
0:02:36.2]} 7. Nxa3 {[%clk 0:02:41.8]} 7... Bg7 {[%clk 0:02:36.1]} 8. c3 {[%clk
0:02:41.2]} 8... O-O {[%clk 0:02:35]} 9. Be3 {[%clk 0:02:39.9]} 9... a6 {[%clk
0:02:21]} 10. h3 {[%clk 0:02:36.9]} 10... d6 {[%clk 0:01:01]} 11. O-O {[%clk
0:02:31]} 11... Bd7 {[%clk 0:01:00.6]} 12. Qd2 {[%clk 0:02:24.8]} 12... Rc8
{[%clk 0:00:57.2]} 13. Bh6 {[%clk 0:02:22]} 13... b5 {[%clk 0:00:48.6]} 14. Bxg7
{[%clk 0:02:19.9]} 14... Kxg7 {[%clk 0:00:49.5]} 15. e5 {[%clk 0:02:09]} 15...
dxe5 {[%clk 0:00:48]} 16. dxe5 {[%clk 0:02:07.9]} 16... Ng8 {[%clk 0:00:41.8]}
17. Nc2 {[%clk 0:01:55.2]} 17... Qb6 {[%clk 0:00:24.4]} 18. Ncd4 {[%clk
0:01:52.1]} 18... Nxd4 {[%clk 0:00:23.9]} 19. cxd4 {[%clk 0:01:51.7]} 19... Be6
{[%clk 0:00:22.2]} 20. Be4 {[%clk 0:01:32.6]} 20... Bc4 {[%clk 0:00:15.7]} 21.
Rfd1 {[%clk 0:01:29.3]} 21... e6 {[%clk 0:00:15.3]} 22. Qe3 {[%clk 0:01:17.3]}
22... Ne7 {[%clk 0:00:14.4]} 23. Nh4 {[%clk 0:01:08.1]} 23... Nd5 {[%clk
0:00:12.9]} 24. Qg5 {[%clk 0:01:06.9]} 24... Nc3 {[%clk 0:00:11.1]} 25. Re1
{[%clk 0:00:57.8]} 25... Nxe4 {[%clk 0:00:09.7]} 26. Rxe4 {[%clk 0:00:57]} 26...
Bd3 {[%clk 0:00:07.3]} 27. Rf4 {[%clk 0:00:56.2]} 27... Rc2 {[%clk 0:00:02.9]}
28. Qf6+ {[%clk 0:00:42.9]} 28... Kg8 {[%clk 0:00:01.8]} 29. Nf3 {[%clk
0:00:39.7]} 29... Qc7 {[%clk 0:00:01.6]} 30. Rh4 {[%clk 0:00:37.9]} 30... Rc1+
{[%clk 0:00:02]} 31. Kh2 {[%clk 0:00:34.8]} 31... Rxa1 {[%clk 0:00:01.1]} 32.
Rxh7 {[%clk 0:00:30.2]} 32... Qd8 {[%clk 0:00:01.4]} 33. Rh8# {[%clk 0:00:28.5]}
1-0

[Event "Betsys MČR v online bleskovém šachu 2021"]
[Site "Chess.com"]
[Date "2021.04.17"]
[Round "11"]
[White "malviny"]
[Black "Cenisuh"]
[Result "1-0"]
[WhiteElo "1197"]
[BlackElo "1592"]
[TimeControl "180+1"]
[EndTime "10:49:38 PDT"]
[Termination "Uživatel malviny zvítězil na čas"]

1. e4 {[%clk 0:03:00.9]} 1... e5 {[%clk 0:02:59.3]} 2. Nf3 {[%clk 0:03:01.3]}
2... d6 {[%clk 0:02:59.7]} 3. d4 {[%clk 0:03:00.6]} 3... exd4 {[%clk 0:02:56.9]}
4. Nxd4 {[%clk 0:03:00.5]} 4... Nf6 {[%clk 0:02:57]} 5. Nc3 {[%clk 0:03:00.4]}
5... Be7 {[%clk 0:02:57]} 6. Bc4 {[%clk 0:02:57.8]} 6... O-O {[%clk 0:02:56.2]}
7. O-O {[%clk 0:02:57]} 7... c6 {[%clk 0:02:56.5]} 8. Nf3 {[%clk 0:02:52.5]}
8... b5 {[%clk 0:02:56.5]} 9. Bb3 {[%clk 0:02:50.4]} 9... b4 {[%clk 0:02:56.8]}
10. Ne2 {[%clk 0:02:31.9]} 10... Nxe4 {[%clk 0:02:50.2]} 11. Qd4 {[%clk
0:02:29.9]} 11... d5 {[%clk 0:02:45.7]} 12. Be3 {[%clk 0:02:08.3]} 12... Ba6
{[%clk 0:02:29.4]} 13. Rfe1 {[%clk 0:02:05.5]} 13... Bc5 {[%clk 0:02:11.3]} 14.
Qd1 {[%clk 0:01:52.6]} 14... Bxe3 {[%clk 0:02:10.7]} 15. fxe3 {[%clk 0:01:52.3]}
15... Qb6 {[%clk 0:02:09.9]} 16. Ned4 {[%clk 0:01:47.2]} 16... Nd7 {[%clk
0:02:00]} 17. Ba4 {[%clk 0:01:42.4]} 17... Rac8 {[%clk 0:01:43.9]} 18. b3 {[%clk
0:01:33.5]} 18... Ndc5 {[%clk 0:01:37.7]} 19. a3 {[%clk 0:01:20.8]} 19... Nxa4
{[%clk 0:01:36.1]} 20. bxa4 {[%clk 0:01:20.5]} 20... Rfe8 {[%clk 0:01:30.8]} 21.
axb4 {[%clk 0:01:19.1]} 21... Qxb4 {[%clk 0:01:23.8]} 22. Ra3 {[%clk 0:01:10.5]}
22... Qxa3 {[%clk 0:01:20.8]} 23. Nd2 {[%clk 0:00:41.3]} 23... Qe7 {[%clk
0:00:48.1]} 24. N2b3 {[%clk 0:00:39.5]} 24... c5 {[%clk 0:00:34.9]} 25. Nf5
{[%clk 0:00:32.1]} 25... Qe5 {[%clk 0:00:28.5]} 26. Qf3 {[%clk 0:00:28.7]} 26...
Ng5 {[%clk 0:00:23]} 27. Qg4 {[%clk 0:00:20.5]} 27... h6 {[%clk 0:00:17.9]} 28.
h4 {[%clk 0:00:18.7]} 28... Ne4 {[%clk 0:00:09.1]} 29. Nxh6+ {[%clk 0:00:17]}
1-0

[Event "Betsys MČR v online bleskovém šachu 2021"]
[Site "Chess.com"]
[Date "2021.04.17"]
[Round "11"]
[White "MilosJi"]
[Black "Sunnika"]
[Result "1-0"]
[WhiteElo "2566"]
[BlackElo "2297"]
[TimeControl "180+1"]
[EndTime "10:49:39 PDT"]
[Termination "Uživatel MilosJi zvítězil na čas"]

1. Nf3 {[%clk 0:03:00.9]} 1... d5 {[%clk 0:02:59.2]} 2. c4 {[%clk 0:03:00.7]}
2... c6 {[%clk 0:02:59.2]} 3. e3 {[%clk 0:03:01.2]} 3... Nf6 {[%clk 0:02:58.8]}
4. Nc3 {[%clk 0:03:01.5]} 4... a6 {[%clk 0:02:54.3]} 5. b3 {[%clk 0:02:59.5]}
5... Bf5 {[%clk 0:02:53.4]} 6. Bb2 {[%clk 0:02:59.1]} 6... h6 {[%clk 0:02:51.5]}
7. Be2 {[%clk 0:02:56.7]} 7... e6 {[%clk 0:02:50.9]} 8. O-O {[%clk 0:02:56.9]}
8... Nbd7 {[%clk 0:02:51.3]} 9. Rc1 {[%clk 0:02:48.7]} 9... Bd6 {[%clk
0:02:44.2]} 10. h3 {[%clk 0:02:48.7]} 10... O-O {[%clk 0:02:43.3]} 11. Re1
{[%clk 0:02:45.7]} 11... Qe7 {[%clk 0:02:42.4]} 12. d3 {[%clk 0:02:41.3]} 12...
Ba3 {[%clk 0:02:40.8]} 13. Qc2 {[%clk 0:02:37.4]} 13... Rfe8 {[%clk 0:02:38.2]}
14. Bf1 {[%clk 0:02:35.1]} 14... Bh7 {[%clk 0:02:37.2]} 15. Nb1 {[%clk
0:02:27.3]} 15... Bxb2 {[%clk 0:02:35.9]} 16. Qxb2 {[%clk 0:02:27.7]} 16... e5
{[%clk 0:02:35.2]} 17. cxd5 {[%clk 0:02:26.9]} 17... Nxd5 {[%clk 0:02:34.8]} 18.
a3 {[%clk 0:02:22.5]} 18... a5 {[%clk 0:02:34.6]} 19. Nc3 {[%clk 0:02:21.8]}
19... N7f6 {[%clk 0:02:32.1]} 20. Nxd5 {[%clk 0:02:11.4]} 20... Nxd5 {[%clk
0:02:33]} 21. d4 {[%clk 0:02:10.9]} 21... exd4 {[%clk 0:02:23.2]} 22. Nxd4
{[%clk 0:02:10.9]} 22... Rad8 {[%clk 0:02:10.6]} 23. Bc4 {[%clk 0:02:02.2]}
23... Qf6 {[%clk 0:02:09.1]} 24. b4 {[%clk 0:01:53.3]} 24... axb4 {[%clk
0:02:05.6]} 25. axb4 {[%clk 0:01:53.5]} 25... Qe7 {[%clk 0:01:34.7]} 26. Bxd5
{[%clk 0:01:42.5]} 26... Rxd5 {[%clk 0:01:33.3]} 27. Rc5 {[%clk 0:01:42.2]}
27... Red8 {[%clk 0:00:58.8]} 28. Rec1 {[%clk 0:01:40.8]} 28... Bg6 {[%clk
0:00:52.4]} 29. Qa2 {[%clk 0:01:33.7]} 29... Kh7 {[%clk 0:00:34.5]} 30. Qa7
{[%clk 0:01:23.1]} 30... R5d7 {[%clk 0:00:12.7]} 31. Qb6 {[%clk 0:01:19.2]}
31... Ra8 {[%clk 0:00:09.4]} 32. b5 {[%clk 0:01:16.3]} 32... cxb5 {[%clk
0:00:09.5]} 33. Qxb5 {[%clk 0:01:15.8]} 33... Ra2 {[%clk 0:00:08.8]} 34. Qb3
{[%clk 0:01:05.2]} 34... Ra6 {[%clk 0:00:08.1]} 35. Rb5 {[%clk 0:01:02.9]} 35...
Rad6 {[%clk 0:00:06.7]} 36. Qb4 {[%clk 0:00:59.3]} 36... Be4 {[%clk 0:00:05.8]}
37. Rcc5 {[%clk 0:00:57.6]} 37... Qf6 {[%clk 0:00:04.2]} 38. Re5 {[%clk
0:00:52.9]} 38... Bc6 {[%clk 0:00:02.3]} 39. Rf5 {[%clk 0:00:53.1]} 39... Qg6
{[%clk 0:00:01.8]} 40. Nxc6 {[%clk 0:00:51.3]} 40... bxc6 {[%clk 0:00:01.4]} 41.
Rbe5 {[%clk 0:00:49.3]} 41... Rd1+ {[%clk 0:00:01.1]} 42. Kh2 {[%clk 0:00:48.6]}
1-0

[Event "Betsys MČR v online bleskovém šachu 2021"]
[Site "Chess.com"]
[Date "2021.04.17"]
[Round "11"]
[White "TerezaRodshtein"]
[Black "Patriktesko"]
[Result "1-0"]
[WhiteElo "2182"]
[BlackElo "2042"]
[TimeControl "180+1"]
[EndTime "10:49:41 PDT"]
[Termination "Uživatel TerezaRodshtein zvítězil na čas"]

1. f4 {[%clk 0:03:00.9]} 1... d5 {[%clk 0:02:59.2]} 2. b3 {[%clk 0:02:59.6]}
2... Nf6 {[%clk 0:02:58.8]} 3. Bb2 {[%clk 0:02:59.5]} 3... c6 {[%clk 0:02:54.4]}
4. Nf3 {[%clk 0:02:59.4]} 4... Bg4 {[%clk 0:02:53.9]} 5. e3 {[%clk 0:02:50.8]}
5... e6 {[%clk 0:02:52.5]} 6. Bd3 {[%clk 0:02:48.9]} 6... Bd6 {[%clk 0:02:51.4]}
7. h3 {[%clk 0:02:47]} 7... Bxf3 {[%clk 0:02:51.2]} 8. Qxf3 {[%clk 0:02:46.8]}
8... Nbd7 {[%clk 0:02:51.5]} 9. g4 {[%clk 0:02:44.8]} 9... Qc7 {[%clk
0:02:47.6]} 10. g5 {[%clk 0:02:44]} 10... Ne4 {[%clk 0:02:41.4]} 11. Bxe4 {[%clk
0:02:38.3]} 11... dxe4 {[%clk 0:02:42.3]} 12. Qxe4 {[%clk 0:02:38.8]} 12...
O-O-O {[%clk 0:02:40.4]} 13. Nc3 {[%clk 0:02:27]} 13... e5 {[%clk 0:02:35.6]}
14. f5 {[%clk 0:02:24.6]} 14... Nc5 {[%clk 0:02:28.1]} 15. Qg4 {[%clk
0:02:24.4]} 15... Kb8 {[%clk 0:02:22.6]} 16. O-O-O {[%clk 0:02:24.3]} 16... f6
{[%clk 0:02:12.4]} 17. h4 {[%clk 0:02:19.7]} 17... Na6 {[%clk 0:01:52.9]} 18.
Ne4 {[%clk 0:02:15.2]} 18... Qa5 {[%clk 0:01:48]} 19. Kb1 {[%clk 0:02:09.2]}
19... Ba3 {[%clk 0:01:46.7]} 20. gxf6 {[%clk 0:02:02.5]} 20... gxf6 {[%clk
0:01:46.1]} 21. Nxf6 {[%clk 0:01:46.2]} 21... Bxb2 {[%clk 0:01:44.5]} 22. Kxb2
{[%clk 0:01:44.8]} 22... Rxd2 {[%clk 0:01:38.1]} 23. Nd7+ {[%clk 0:01:38.4]}
23... Ka8 {[%clk 0:01:23.1]} 24. Rxd2 {[%clk 0:01:31.5]} 24... Qxd2 {[%clk
0:01:24]} 25. Nxe5 {[%clk 0:01:26.8]} 25... Qxe3 {[%clk 0:01:13.4]} 26. Nc4
{[%clk 0:01:25.6]} 26... Qf2 {[%clk 0:01:01.1]} 27. Rd1 {[%clk 0:01:18.7]} 27...
Rf8 {[%clk 0:00:41.5]} 28. Nd6 {[%clk 0:01:15.1]} 28... Qe3 {[%clk 0:00:29.6]}
29. Qg7 {[%clk 0:01:11]} 29... Rb8 {[%clk 0:00:26.6]} 30. Rd3 {[%clk 0:01:06.3]}
30... Qe2 {[%clk 0:00:19]} 31. Qd4 {[%clk 0:01:02.4]} 31... Nc7 {[%clk
0:00:12.1]} 32. f6 {[%clk 0:00:59.3]} 32... Nd5 {[%clk 0:00:11.5]} 33. f7 {[%clk
0:00:56.8]} 33... Qf1 {[%clk 0:00:10.3]} 34. Rd1 {[%clk 0:00:43.7]} 34... Qf3
{[%clk 0:00:09.2]} 35. Re1 {[%clk 0:00:34.3]} 35... a6 {[%clk 0:00:06]} 36. Re8
{[%clk 0:00:34]} 1-0

[Event "Betsys MČR v online bleskovém šachu 2021"]
[Site "Chess.com"]
[Date "2021.04.17"]
[Round "11"]
[White "Petroniuss"]
[Black "Richarlito"]
[Result "0-1"]
[WhiteElo "2221"]
[BlackElo "2078"]
[TimeControl "180+1"]
[EndTime "10:49:42 PDT"]
[Termination "Uživatel Richarlito zvítězil na čas"]

1. e4 {[%clk 0:03:00.9]} 1... c6 {[%clk 0:02:59.8]} 2. d3 {[%clk 0:02:59.9]}
2... d5 {[%clk 0:02:58.9]} 3. Nd2 {[%clk 0:03:00.8]} 3... dxe4 {[%clk
0:02:58.4]} 4. dxe4 {[%clk 0:03:00.6]} 4... Nf6 {[%clk 0:02:57.4]} 5. Ngf3
{[%clk 0:03:00.7]} 5... Bg4 {[%clk 0:02:56.6]} 6. h3 {[%clk 0:02:43.1]} 6...
Bxf3 {[%clk 0:02:55.5]} 7. Qxf3 {[%clk 0:02:42.8]} 7... Nbd7 {[%clk 0:02:55.7]}
8. g3 {[%clk 0:02:25.4]} 8... e6 {[%clk 0:02:48.7]} 9. Bg2 {[%clk 0:02:24.8]}
9... Bc5 {[%clk 0:02:40.4]} 10. O-O {[%clk 0:02:23.7]} 10... Qc7 {[%clk
0:02:37.5]} 11. Nb3 {[%clk 0:02:20.2]} 11... Bb6 {[%clk 0:02:35.2]} 12. Be3
{[%clk 0:02:20]} 12... Ne5 {[%clk 0:02:25.1]} 13. Qe2 {[%clk 0:02:20]} 13...
Bxe3 {[%clk 0:02:20.6]} 14. Qxe3 {[%clk 0:02:20.4]} 14... Nc4 {[%clk 0:02:20.3]}
15. Qc3 {[%clk 0:02:09.8]} 15... Nb6 {[%clk 0:02:14.5]} 16. Rad1 {[%clk
0:02:04.4]} 16... O-O {[%clk 0:02:12]} 17. Rd3 {[%clk 0:01:52.6]} 17... Rfd8
{[%clk 0:02:11.5]} 18. Rfd1 {[%clk 0:01:52.9]} 18... Rxd3 {[%clk 0:02:11.4]} 19.
Qxd3 {[%clk 0:01:51.6]} 19... h6 {[%clk 0:02:11.5]} 20. Bf1 {[%clk 0:01:40.5]}
20... Nbd7 {[%clk 0:02:08.1]} 21. Qd6 {[%clk 0:01:29.1]} 21... Qb6 {[%clk
0:02:03.6]} 22. Qd4 {[%clk 0:01:05.4]} 22... c5 {[%clk 0:01:55.1]} 23. Qd6
{[%clk 0:01:00.4]} 23... Rd8 {[%clk 0:01:37.8]} 24. f4 {[%clk 0:00:52.4]} 24...
Qxd6 {[%clk 0:01:32.5]} 25. Rxd6 {[%clk 0:00:51.7]} 25... Nxe4 {[%clk
0:01:32.8]} 26. Rd1 {[%clk 0:00:39.7]} 26... Kf8 {[%clk 0:01:29.5]} 27. Kg2
{[%clk 0:00:31.4]} 27... Ke7 {[%clk 0:01:28.8]} 28. Be2 {[%clk 0:00:27.8]} 28...
b6 {[%clk 0:01:25.4]} 29. Bf3 {[%clk 0:00:27.6]} 29... Ndf6 {[%clk 0:01:22.6]}
30. Re1 {[%clk 0:00:27]} 30... Nd2 {[%clk 0:01:17.2]} 31. Re2 {[%clk 0:00:25.2]}
31... Nxf3 {[%clk 0:01:15.3]} 32. Kxf3 {[%clk 0:00:25]} 32... Nd5 {[%clk
0:01:09.8]} 33. Nd2 {[%clk 0:00:24.3]} 33... Nb4 {[%clk 0:01:09]} 34. c3 {[%clk
0:00:22.8]} 34... Nxa2 {[%clk 0:01:04.5]} 35. Nb3 {[%clk 0:00:21.6]} 35... c4
{[%clk 0:01:00.8]} 36. Nd4 {[%clk 0:00:21.5]} 36... Rxd4 {[%clk 0:00:39.6]} 37.
cxd4 {[%clk 0:00:21.4]} 37... Nb4 {[%clk 0:00:40.5]} 38. Ke3 {[%clk 0:00:11]}
38... b5 {[%clk 0:00:40.2]} 39. Kd2 {[%clk 0:00:07.7]} 39... Nc6 {[%clk
0:00:38.5]} 0-1